fUSD/lending_fUSD_20240614
["ID","MTS","AMOUNT","RATE_DAILY","PERIOD"]
[329424355,1718329899671,-273.78190401,0.00025753,3]
[329424356,1718329899687,-451.87809599,0.00025753,3]
[329424357,1718329899712,-710.82,0.00025753,3]
[329424358,1718329899732,-1247.89,0.00025753,3]
[329424359,1718329899748,-1459.88,0.00025753,3]
[329424360,1718329899761,-1596.05,0.00025753,3]
[329424361,1718329899800,-763.24,0.00025753,3]
[329424362,1718329899813,-500.0,0.00025753,3]
[329424363,1718329899832,-500.0,0.00025753,3]
[329424364,1718329899876,-513.56871781,0.00025753,3]
[329424365,1718329899908,-500.0,0.00025753,3]
[329424366,1718329899936,-500.0,0.00025753,3]
[329424367,1718329899951,-923.18,0.00025753,3]
[329424368,1718329899964,-500.0,0.00025753,3]
[329424369,1718329899983,-540.48,0.00025753,3]
[329424370,1718329899998,-500.0,0.00025753,3]
[329424371,1718329900020,-2106.23,0.00025753,3]
[329424372,1718329900050,-500.0,0.00025753,3]
[329424373,1718329900072,-500.0,0.00025753,3]
[329424374,1718329900091,-504.54,0.00025753,3]
[329424375,1718329900107,-1539.25,0.00025753,3]
[329424376,1718329900124,-500.0,0.00025753,3]
[329424377,1718329900162,-516.49,0.00025753,3]
[329424378,1718329900175,-1036.84,0.00025753,3]
[329424379,1718329900209,-8388.73,0.00025753,3]
[329424380,1718329900226,-2997.79,0.00025753,3]
[329424381,1718329900249,-564.9477656,0.00025753,3]
[329424382,1718329900281,-151.0,0.00025753,7]
[329424383,1718329900295,-1701.31,0.00025753,3]
[329424384,1718329900306,-500.0,0.00025753,3]
[329424385,1718329900328,-853.3,0.00025753,3]
[329424386,1718329900349,-6425.34,0.00025753,3]
[329424387,1718329900362,-713.37,0.00025753,3]
[329424388,1718329900385,-712.85,0.00025753,3]
[329424389,1718329900401,-1143.4,0.00025753,3]
[329424390,1718329900443,-525.45286697,0.00025753,3]
[329424391,1718329900492,-500.0,0.00025753,3]
[329424392,1718329900509,-500.0,0.00025753,3]
[329424393,1718329900541,-970.67,0.00025753,3]
[329424394,1718329900572,-14213.73,0.00025753,3]
[329424395,1718329900608,-500.0,0.00025753,3]
[329424396,1718329900649,-824.99,0.00025753,3]
[329424397,1718329900695,-772.8,0.00025753,3]
[329424398,1718329900716,-500.0,0.00025753,3]
[329424399,1718329900728,-508.77,0.00025753,3]
[329424400,1718329900739,-1559.88,0.00025753,3]
[329424401,1718329900752,-18236.24,0.00025753,3]
[329424402,1718329900765,-377.55110096,0.00025753,3]
[329424403,1718329900796,-788.77,0.00025753,3]
[329424404,1718329900806,-814.94,0.00025753,3]
[329424405,1718329900832,-500.0,0.00025753,3]
[329424406,1718329900857,-1138.87,0.00025753,3]
[329424407,1718329900894,-500.0,0.00025753,3]
[329424408,1718329900905,-500.0,0.00025753,3]
[329424409,1718329900916,-3010.8,0.00025753,3]
[329424410,1718329900927,-1211.77,0.00025753,3]
[329424411,1718329900942,-500.0,0.00025753,3]
[329424412,1718329900953,-954.02,0.00025753,3]
[329424413,1718329900965,-2613.92,0.00025753,3]
[329424414,1718329900978,-1139.77,0.00025753,3]
[329424415,1718329900991,-1326.27,0.00025753,3]
[329424416,1718329901017,-1034.21,0.00025753,3]
[329424417,1718329901029,-500.0,0.00025753,3]
[329424418,1718329901041,-1703.47,0.00025753,3]
[329424419,1718329901053,-750.83,0.00025753,3]
[329424420,1718329901071,-737.6,0.00025753,3]
[329424421,1718329901089,-202.23422499,0.00025753,3]
[329424422,1718329901123,-2561.07,0.00025753,3]
[329424423,1718329901162,-1284.33,0.00025753,3]
[329424424,1718329901185,-1306.03,0.00025753,3]
[329424425,1718329901207,-500.0,0.00025753,3]
[329424426,1718329901224,-663.01,0.00025753,3]
[329424427,1718329901238,-2161.7,0.00025753,3]
[329424428,1718329901256,-4069.95,0.00025753,3]
[329424429,1718329901270,-1384.56,0.00025753,3]
[329424430,1718329901285,-1695.26,0.00025753,3]
[329424431,1718329901303,-682.29,0.00025753,3]
[329424432,1718329901318,-527.80276437,0.00025753,3]
[329424433,1718329901341,-8569.36,0.00025753,3]
[329424434,1718329901359,-1116.19,0.00025753,3]
[329424435,1718329901390,-182.15272882,0.00025753,3]
[329424436,1718329901408,-254.07109085,0.00025753,3]
[329424437,1718329901480,-669.39,0.00025753,3]
[329424438,1718329901496,-518.86,0.00025753,3]
[329424439,1718329901534,-661.47,0.00025753,3]
[329424440,1718329901545,-500.0,0.00025753,3]
[329424441,1718329901556,-1788.93,0.00025753,3]
[329424442,1718329901577,-2545.55,0.00025753,3]
[329424443,1718329901598,-691.74,0.00025753,3]
[329424444,1718329901614,-1814.53,0.00025753,3]
[329424445,1718329901626,-500.0,0.00025753,3]
[329424446,1718329901642,-2594.63,0.00025753,3]
[329424447,1718329901655,-509.61,0.00025753,3]
[329424448,1718329901668,-754.17,0.00025753,3]
[329424449,1718329901684,-571.98,0.00025753,3]
[329424450,1718329901700,-527.54,0.00025753,3]
[329424451,1718329901715,-2889.87,0.00025753,3]
[329424452,1718329901730,-8645.55,0.00025753,3]
[329424453,1718329901750,-1670.07,0.00025753,3]
[329424454,1718329901766,-1424.48,0.00025753,3]
[329424455,1718329901803,-1548.18,0.00025753,3]
[329424456,1718329901822,-1790.01,0.00025753,3]
[329424457,1718329901846,-500.0,0.00025753,3]
[329424458,1718329901859,-2617.75,0.00025753,3]
[329424459,1718329901878,-2824.15,0.00025753,3]
[329424460,1718329901893,-500.0,0.00025753,3]
[329424461,1718329901905,-863.29,0.00025753,3]
[329424462,1718329901923,-1525.09,0.00025753,3]
[329424463,1718329901953,-1816.42,0.00025753,3]
[329424464,1718329901964,-344.61471674,0.00025753,3]
[329424465,1718329901988,-500.0,0.00025753,3]
[329424466,1718329902002,-859.93,0.00025753,3]
[329424467,1718329902023,-500.0,0.00025753,3]
[329424468,1718329902037,-500.0,0.00025753,3]
[329424469,1718329902050,-500.0,0.00025753,3]
[329424470,1718329902063,-952.86,0.00025753,3]
[329424471,1718329902079,-152.38,0.0002589,2]
[329424472,1718329902092,-386.85,0.0002589,2]
[329424473,1718329902104,-150.67,0.0002589,2]
[329424474,1718329902160,-150.56,0.0002589,2]
[329424475,1718329902173,-151.05,0.0002589,2]
[329424476,1718329902197,-300.33,0.0002589,2]
[329424477,1718329902215,-359.36,0.0002589,2]
[329424478,1718329902228,-429.46,0.0002589,2]
[329424479,1718329902253,-151.88,0.0002589,2]
[329424480,1718329902316,-534.53,0.0002589,2]
[329424481,1718329902328,-353.67,0.0002589,2]
[329424482,1718329902351,-422.94,0.0002589,2]
[329424483,1718329902369,-164.31,0.0002589,2]
[329424484,1718329902397,-150.0,0.0002589,2]
[329424485,1718329902425,-150.0,0.0002589,2]
[329424486,1718329902454,-150.0,0.0002589,2]
[329424487,1718329902465,-150.0,0.0002589,2]
[329424488,1718329902476,-150.0,0.0002589,2]
[329424489,1718329902489,-526.76,0.0002589,2]
[329424490,1718329902507,-150.0,0.0002589,2]
[329424491,1718329902524,-526.76,0.0002589,2]
[329424492,1718329902539,-353.67,0.0002589,2]
[329424493,1718329902552,-150.0,0.0002589,2]
[329424494,1718329902589,-150.0,0.0002589,2]
[329424495,1718329902623,-150.0,0.0002589,2]
[329424496,1718329902636,-150.0,0.0002589,2]
[329424497,1718329902649,-150.0,0.0002589,2]
[329424498,1718329902678,-150.0,0.0002589,2]
[329424499,1718329902690,-164.31,0.0002589,2]
[329424500,1718329902701,-422.94,0.0002589,2]
[329424501,1718329902727,-1596.89,0.00026026,3]
[329424502,1718329902751,-523.53,0.00026026,3]
[329424503,1718329902770,-1611.8,0.00026026,3]
[329424504,1718329902785,-1026.92,0.00026026,3]
[329424505,1718329902806,-5934.88,0.00026026,3]
[329424506,1718329902819,-1007.25,0.00026026,3]
[329424507,1718329902839,-500.0,0.00026026,3]
[329424508,1718329902851,-2123.94,0.00026026,3]
[329424509,1718329902863,-943.36,0.00026026,3]
[329424510,1718329902886,-1675.45,0.00026026,3]
[329424511,1718329902898,-870.7,0.00026026,3]
[329424512,1718329902909,-547.75,0.00026026,3]
[329424513,1718329902921,-3954.16,0.00026026,3]
[329424514,1718329902938,-1779.46,0.00026026,3]
[329424515,1718329902952,-2709.71,0.00026026,3]
[329424516,1718329902965,-3157.36,0.00026026,3]
[329424517,1718329902976,-500.0,0.00026027,3]
[329424518,1718329902988,-500.0,0.00026027,3]
[329424519,1718329903001,-500.0,0.00026027,3]
[329424520,1718329903039,-500.0,0.00026027,3]
[329424521,1718329903053,-500.0,0.00026027,3]
[329424522,1718329903067,-472.95494558,0.00026027,3]
[329424523,1718329903078,-480.52647013,0.00026027,3]
[329424524,1718329903099,-500.0,0.00026027,3]
[329424525,1718329903112,-500.0,0.00026027,3]
[329424526,1718329903124,-500.0,0.00026027,3]
[329424527,1718329903150,-500.0,0.00026027,3]
[329424528,1718329903163,-548.42,0.00026027,3]
[329424529,1718329903185,-591.54,0.00026027,3]
[329424530,1718329903209,-992.45,0.00026027,3]
[329424531,1718329903222,-500.0,0.00026027,3]
[329424532,1718329903235,-771.5,0.00026027,3]
[329424533,1718329903248,-641.72,0.00026027,3]
[329424534,1718329903261,-500.0,0.00026027,3]
[329424535,1718329903276,-500.0,0.00026027,3]
[329424536,1718329903288,-519.86541801,0.00026027,3]
[329424537,1718329903300,-500.0,0.00026027,3]
[329424538,1718329903315,-500.0,0.00026027,3]
[329424539,1718329903326,-500.0,0.00026027,3]
[329424540,1718329903343,-500.0,0.00026027,3]
[329424541,1718329903359,-612.48,0.00026027,3]
[329424542,1718329903372,-194.87736109,0.00026027,3]
[329424543,1718329903388,-598.86,0.00026027,3]
[329424544,1718329903406,-1020.91,0.00026027,3]
[329424545,1718329903431,-500.0,0.00026027,3]
[329424546,1718329903485,-500.0,0.00026027,3]
[329424547,1718329903515,-500.0,0.00026027,3]
[329424548,1718329903533,-500.0,0.00026027,3]
[329424549,1718329903552,-500.0,0.00026027,3]
[329424550,1718329903576,-621.24,0.00026027,3]
[329424551,1718329903593,-500.0,0.00026027,3]
[329424552,1718329903609,-802.16,0.00026027,3]
[329424553,1718329903645,-1025.39,0.00026027,3]
[329424554,1718329903659,-749.07,0.00026027,3]
[329424555,1718329903679,-500.0,0.00026027,3]
[329424556,1718329903691,-625.95,0.00026027,3]
[329424557,1718329903715,-500.0,0.00026027,3]
[329424558,1718329903726,-695.14,0.00026027,3]
[329424559,1718329903747,-594.63,0.00026027,3]
[329424560,1718329903759,-500.0,0.00026027,3]
[329424561,1718329903785,-510.89,0.00026027,3]
[329424562,1718329903811,-810.56,0.00026027,3]
[329424563,1718329903834,-620.16,0.00026027,3]
[329424564,1718329903864,-644.0,0.00026027,3]
[329424565,1718329903896,-500.0,0.00026027,3]
[329424566,1718329903911,-500.0,0.00026027,3]
[329424567,1718329903932,-242.1712643,0.00026027,3]
[329424568,1718329903948,-500.0,0.00026027,3]
[329424569,1718329903960,-637.11,0.00026027,3]
[329424570,1718329903979,-500.0,0.00026027,3]
[329424571,1718329904012,-500.0,0.00026027,3]
[329424572,1718329904057,-285.90284661,0.00026027,3]
[329424573,1718329904078,-500.0,0.00026027,3]
[329424574,1718329904110,-500.0,0.00026027,3]
[329424575,1718329904124,-500.0,0.00026027,3]
[329424576,1718329904136,-207.71385515,0.00026027,3]
[329424577,1718329904173,-731.43,0.00026027,3]
[329424578,1718329904192,-500.0,0.00026027,3]
[329424579,1718329904223,-533.52,0.00026027,3]
[329424580,1718329904242,-500.0,0.00026027,3]
[329424581,1718329904272,-500.0,0.00026027,3]
[329424582,1718329904291,-500.0,0.00026027,3]
[329424583,1718329904315,-500.0,0.00026027,3]
[329424584,1718329904335,-500.0,0.00026027,3]
[329424585,1718329904366,-500.0,0.00026027,3]
[329424586,1718329904388,-500.0,0.00026027,3]
[329424587,1718329904404,-599.58,0.00026027,3]
[329424588,1718329904417,-500.0,0.00026027,3]
[329424589,1718329904455,-500.0,0.00026027,3]
[329424590,1718329904493,-514.24348263,0.00026027,3]
[329424591,1718329904525,-904.8,0.00026027,3]
[329424592,1718329904556,-500.0,0.00026027,3]
[329424593,1718329904567,-780.74,0.00026027,3]
[329424594,1718329904588,-500.0,0.00026027,3]
[329424595,1718329904602,-500.0,0.00026027,3]
[329424596,1718329904617,-615.82,0.00026027,3]
[329424597,1718329904636,-500.0,0.00026027,3]
[329424598,1718329904654,-501.56,0.00026027,3]
[329424599,1718329904672,-185.3,0.00026027,3]
[329424600,1718329904686,-734.92,0.00026027,3]
[329424601,1718329904708,-500.0,0.00026027,3]
[329424602,1718329904720,-500.0,0.00026027,3]
[329424603,1718329904732,-500.0,0.00026027,3]
[329424604,1718329904744,-500.0,0.00026027,3]
[329424605,1718329904767,-500.0,0.00026027,3]
[329424606,1718329904780,-500.0,0.00026027,3]
[329424607,1718329904793,-500.0,0.00026027,3]
[329424608,1718329904806,-538.29,0.00026027,3]
[329424609,1718329904822,-500.0,0.00026027,3]
[329424610,1718329904841,-500.0,0.00026027,3]
[329424611,1718329904857,-500.0,0.00026027,3]
[329424612,1718329904885,-170.20622963,0.00026027,3]
[329424613,1718329904909,-720.9,0.00026027,3]
[329424614,1718329904922,-739.59,0.00026027,3]
[329424615,1718329904934,-500.0,0.00026027,3]
[329424616,1718329904945,-500.0,0.00026027,3]
[329424617,1718329904981,-181.41437175,0.00026027,3]
[329424618,1718329904994,-224.16500469,0.00026027,3]
[329424619,1718329905007,-285.5087078,0.00026027,3]
[329424620,1718329905021,-500.0,0.00026027,3]
[329424621,1718329905034,-500.0,0.00026027,3]
[329424622,1718329905048,-2312.84,0.00026027,3]
[329424623,1718329905069,-746.33,0.00026027,3]
[329424624,1718329905081,-645.3,0.00026027,3]
[329424625,1718329905093,-500.0,0.00026027,3]
[329424626,1718329905107,-2546.31,0.00026027,3]
[329424627,1718329905129,-500.0,0.00026027,3]
[329424628,1718329905142,-500.0,0.00026027,3]
[329424629,1718329905159,-500.0,0.00026027,3]
[329424630,1718329905172,-500.0,0.00026027,3]
[329424631,1718329905189,-500.0,0.00026027,3]
[329424632,1718329905204,-706.84,0.00026027,3]
[329424633,1718329905218,-738.38,0.00026027,3]
[329424634,1718329905240,-322.43113145,0.00026027,3]
[329424635,1718329905274,-500.0,0.00026027,3]
[329424636,1718329905288,-240.97753935,0.00026027,3]
[329424637,1718329905315,-538.7,0.00026027,3]
[329424638,1718329905329,-734.23,0.00026027,3]
[329424639,1718329905357,-811.75,0.00026027,3]
[329424640,1718329905370,-5232.61,0.00026027,3]
[329424641,1718329905382,-500.0,0.00026027,3]
[329424642,1718329905396,-500.0,0.00026027,3]
[329424643,1718329905408,-1315.57,0.00026027,3]
[329424644,1718329905428,-914.92,0.00026027,3]
[329424645,1718329905449,-500.0,0.00026027,3]
[329424646,1718329905487,-522.61,0.00026027,3]
[329424647,1718329905512,-500.0,0.00026027,3]
[329424648,1718329905534,-738.07,0.00026027,3]
[329424649,1718329905552,-4346.24,0.00026027,3]
[329424650,1718329905577,-500.0,0.00026027,3]
[329424651,1718329905589,-500.0,0.00026027,3]
[329424652,1718329905643,-2017.22,0.00026027,3]
[329424653,1718329905690,-698.43,0.00026027,3]
[329424654,1718329905707,-500.0,0.00026027,3]
[329424655,1718329905736,-690.02,0.00026027,3]
[329424656,1718329905754,-500.0,0.00026027,3]
[329424657,1718329905768,-500.0,0.00026027,3]
[329424658,1718329905780,-500.0,0.00026027,3]
[329424659,1718329905794,-713.88,0.00026027,3]
[329424660,1718329905808,-551.07,0.00026027,3]
[329424661,1718329905822,-794.24,0.00026027,3]
[329424662,1718329905833,-785.3,0.00026027,3]
[329424663,1718329905859,-1263.69,0.00026027,3]
[329424664,1718329905883,-1583.91,0.00026027,3]
[329424665,1718329905898,-562.87,0.00026027,3]
[329424666,1718329905916,-500.0,0.00026027,3]
[329424667,1718329905928,-528.45,0.00026027,3]
[329424668,1718329905941,-3644.52,0.00026027,3]
[329424669,1718329905970,-1028.38,0.00026027,3]
[329424670,1718329905984,-744.0,0.00026027,3]
[329424671,1718329905998,-614.99358693,0.00026027,3]
[329424672,1718329906012,-500.0,0.00026027,3]
[329424673,1718329906026,-500.0,0.00026027,3]
[329424674,1718329906051,-500.0,0.00026027,3]
[329424675,1718329906077,-519.3,0.00026027,3]
[329424676,1718329906120,-6885.52,0.00026027,3]
[329424677,1718329906145,-858.45,0.00026027,3]
[329424678,1718329906173,-3143.2,0.00026027,3]
[329424679,1718329906208,-1414.07,0.00026027,3]
[329424680,1718329906232,-544.69,0.00026027,3]
[329424681,1718329906244,-500.0,0.00026027,3]
[329424682,1718329906259,-19497.87,0.00026027,3]
[329424683,1718329906274,-500.0,0.00026027,3]
[329424684,1718329906296,-500.0,0.00026027,3]
[329424685,1718329906326,-3507.4,0.00026027,3]
[329424686,1718329906344,-1740.38,0.00026027,3]
[329424687,1718329906377,-725.66,0.00026027,3]
[329424688,1718329906389,-710.82,0.00026027,3]
[329424689,1718329906402,-1247.89,0.00026027,3]
[329424690,1718329906422,-1459.88,0.00026027,3]
[329424691,1718329906445,-1596.05,0.00026027,3]
[329424692,1718329906461,-763.24,0.00026027,3]
[329424693,1718329906474,-500.0,0.00026027,3]
[329424694,1718329906492,-311.28895362,0.00026027,3]
[329424695,1718329906694,-500.0,0.00026027,3]
[329424696,1718329906713,-500.0,0.00026027,3]
[329424697,1718329906728,-923.18,0.00026027,3]
[329424698,1718329906752,-500.0,0.00026027,3]
[329424699,1718329906764,-500.0,0.00026027,3]
[329424700,1718329906784,-2106.23,0.00026027,3]
[329424701,1718329906796,-500.0,0.00026027,3]
[329424702,1718329906807,-500.0,0.00026027,3]
[329424703,1718329906823,-504.54,0.00026027,3]
[329424704,1718329906834,-1539.25,0.00026027,3]
[329424705,1718329906846,-293.92769587,0.00026027,3]
[329424706,1718329906863,-516.49,0.00026027,3]
[329424707,1718329906889,-1036.84,0.00026027,3]
[329424708,1718329906904,-8388.73,0.00026027,3]
[329424709,1718329906924,-2997.79,0.00026027,3]
[329424710,1718329906939,-1701.31,0.00026027,3]
[329424711,1718329906955,-500.0,0.00026027,3]
[329424712,1718329906967,-853.3,0.00026027,3]
[329424713,1718329906979,-6425.34,0.00026027,3]
[329424714,1718329906991,-713.37,0.00026027,3]
[329424715,1718329907002,-712.85,0.00026027,3]
[329424716,1718329907013,-1143.4,0.00026027,3]
[329424717,1718329907027,-500.0,0.00026027,3]
[329424718,1718329907048,-500.0,0.00026027,3]
[329424719,1718329907059,-970.67,0.00026027,3]
[329424720,1718329907070,-14213.73,0.00026027,3]
[329424721,1718329907083,-500.0,0.00026027,3]
[329424722,1718329907112,-772.8,0.00026027,3]
[329424723,1718329907127,-824.99,0.00026027,3]
[329424724,1718329907141,-500.0,0.00026027,3]
[329424725,1718329907162,-508.77,0.00026027,3]
[329424726,1718329907176,-1559.88,0.00026027,3]
[329424727,1718329907193,-18236.24,0.00026027,3]
[329424728,1718329907205,-788.77,0.00026027,3]
[329424729,1718329907220,-814.94,0.00026027,3]
[329424730,1718329907241,-500.0,0.00026027,3]
[329424731,1718329907252,-1138.87,0.00026027,3]
[329424732,1718329907265,-593.2948075,0.00026027,3]
[329424733,1718329907277,-500.0,0.00026027,3]
[329424734,1718329907288,-3010.8,0.00026027,3]
[329424735,1718329907305,-1211.77,0.00026027,3]
[329424736,1718329907317,-500.0,0.00026027,3]
[329424737,1718329907332,-954.02,0.00026027,3]
[329424738,1718329907345,-2613.92,0.00026027,3]
[329424739,1718329907360,-1139.77,0.00026027,3]
[329424740,1718329907387,-1326.27,0.00026027,3]
[329424741,1718329907399,-500.0,0.00026027,3]
[329424742,1718329907411,-1034.21,0.00026027,3]
[329424743,1718329907425,-1703.47,0.00026027,3]
[329424744,1718329907443,-750.83,0.00026027,3]
[329424745,1718329907455,-737.6,0.00026027,3]
[329424746,1718329907479,-2561.07,0.00026027,3]
[329424747,1718329907491,-1284.33,0.00026027,3]
[329424748,1718329907514,-1306.03,0.00026027,3]
[329424749,1718329907526,-500.0,0.00026027,3]
[329424750,1718329907576,-663.01,0.00026027,3]
[329424751,1718329907587,-2161.7,0.00026027,3]
[329424752,1718329907599,-4069.95,0.00026027,3]
[329424753,1718329907620,-1384.56,0.00026027,3]
[329424754,1718329907631,-1695.26,0.00026027,3]
[329424755,1718329907644,-682.29,0.00026027,3]
[329424756,1718329907656,-8569.36,0.00026027,3]
[329424757,1718329907666,-1116.19,0.00026027,3]
[329424758,1718329907683,-669.39,0.00026027,3]
[329424759,1718329907695,-518.86,0.00026027,3]
[329424760,1718329907706,-661.47,0.00026027,3]
[329424761,1718329907720,-500.0,0.00026027,3]
[329424762,1718329907744,-1788.93,0.00026027,3]
[329424763,1718329907755,-2545.55,0.00026027,3]
[329424764,1718329907765,-691.74,0.00026027,3]
[329424765,1718329907776,-1814.53,0.00026027,3]
[329424766,1718329907787,-500.0,0.00026027,3]
[329424767,1718329907798,-2594.63,0.00026027,3]
[329424768,1718329907812,-509.61,0.00026027,3]
[329424769,1718329907826,-754.17,0.00026027,3]
[329424770,1718329907840,-527.54,0.00026027,3]
[329424771,1718329907854,-2889.87,0.00026027,3]
[329424772,1718329907881,-8645.55,0.00026027,3]
[329424773,1718329907892,-1670.07,0.00026027,3]
[329424774,1718329907907,-1424.48,0.00026027,3]
[329424775,1718329907919,-1790.01,0.00026027,3]
[329424776,1718329907930,-1548.18,0.00026027,3]
[329424777,1718329907942,-2617.75,0.00026027,3]
[329424778,1718329907962,-500.0,0.00026027,3]
[329424779,1718329907974,-3159.25,0.00026027,2]
[329424780,1718329907992,-3159.25,0.00026027,2]
[329424781,1718329908003,-3159.25,0.00026027,3]
[329424782,1718329908022,-3159.25,0.00026027,3]
[329424783,1718329908048,-3159.25,0.00026027,3]
[329424784,1718329908063,-3159.25,0.00026027,3]
[329424785,1718329908090,-2824.15,0.00026027,3]
[329424786,1718329908133,-3159.25,0.00026027,3]
[329424787,1718329908146,-500.0,0.00026027,3]
[329424788,1718329908172,-1525.09,0.00026027,3]
[329424789,1718329908193,-1816.42,0.00026027,3]
[329424790,1718329908215,-500.0,0.00026027,3]
[329424791,1718329908236,-863.29,0.00026027,3]
[329424792,1718329908248,-859.93,0.00026027,3]
[329424793,1718329908260,-500.0,0.00026027,3]
[329424794,1718329908276,-500.0,0.00026027,3]
[329424795,1718329908287,-500.0,0.00026027,3]
[329424796,1718329908298,-952.86,0.00026027,3]
[329424797,1718329908310,-1176.09675753,0.00026037,3]
[329424798,1718329908321,-1221.58,0.000261,2]
[329424799,1718329908333,-546.09,0.00026196,2]
[329424800,1718329908346,-156.53051898,0.000263,10]
[329424801,1718329908358,-1596.89,0.000263,3]
[329424802,1718329908376,-523.53,0.000263,3]
[329424803,1718329908388,-1611.8,0.000263,3]
[329424804,1718329908400,-1026.92,0.000263,3]
[329424805,1718329908419,-5934.88,0.000263,3]
[329424806,1718329908434,-1007.25,0.000263,3]
[329424807,1718329908453,-500.0,0.000263,3]
[329424808,1718329908467,-2123.94,0.000263,3]
[329424809,1718329908479,-943.36,0.000263,3]
[329424810,1718329908496,-1675.45,0.000263,3]
[329424811,1718329908513,-870.7,0.000263,3]
[329424812,1718329908524,-547.75,0.000263,3]
[329424813,1718329908560,-3954.16,0.000263,3]
[329424814,1718329908572,-1779.46,0.000263,3]
[329424815,1718329908584,-2709.71,0.000263,3]
[329424816,1718329908596,-3157.36,0.000263,3]
[329424817,1718329908608,-3159.25,0.000263,3]
[329424818,1718329908622,-500.0,0.00026301,3]
[329424819,1718329908634,-500.0,0.00026301,3]
[329424820,1718329908645,-500.0,0.00026301,3]
[329424821,1718329908656,-551.81195452,0.00026301,3]
[329424822,1718329908673,-500.0,0.00026301,3]
[329424823,1718329908688,-608.66457638,0.00026301,3]
[329424824,1718329908699,-500.0,0.00026301,3]
[329424825,1718329908717,-500.0,0.00026301,3]
[329424826,1718329908741,-500.0,0.00026301,3]
[329424827,1718329908754,-548.42,0.00026301,3]
[329424828,1718329908774,-591.54,0.00026301,3]
[329424829,1718329908788,-992.45,0.00026301,3]
[329424830,1718329908799,-500.0,0.00026301,3]
[329424831,1718329908824,-771.5,0.00026301,3]
[329424832,1718329908853,-641.72,0.00026301,3]
[329424833,1718329908880,-500.0,0.00026301,3]
[329424834,1718329908892,-488.37569597,0.00026301,3]
[329424835,1718329908910,-500.0,0.00026301,3]
[329424836,1718329908926,-486.97731244,0.00026301,3]
[329424837,1718329908940,-500.0,0.00026301,3]
[329424838,1718329908960,-500.0,0.00026301,3]
[329424839,1718329908994,-612.48,0.00026301,3]
[329424840,1718329909019,-598.86,0.00026301,3]
[329424841,1718329909049,-1020.91,0.00026301,3]
[329424842,1718329909062,-500.0,0.00026301,3]
[329424843,1718329909077,-500.0,0.00026301,3]
[329424844,1718329909091,-500.0,0.00026301,3]
[329424845,1718329909106,-500.0,0.00026301,3]
[329424846,1718329909120,-500.0,0.00026301,3]
[329424847,1718329909132,-500.0,0.00026301,3]
[329424848,1718329909161,-621.24,0.00026301,3]
[329424849,1718329909178,-802.16,0.00026301,3]
[329424850,1718329909206,-1025.39,0.00026301,3]
[329424851,1718329909229,-749.07,0.00026301,3]
[329424852,1718329909243,-500.0,0.00026301,3]
[329424853,1718329909268,-625.95,0.00026301,3]
[329424854,1718329909290,-642.1530678,0.00026301,3]